Cogmind - Beta 16.1 @@@ ROGUE MODE // 2026.03.21 @ 16:37:12 Player: Thqwib-Linux Result: Self-destructed Performance ------------- Evolutions (3) 1500 Regions Visited (6) 1200 Robots Destroyed (64) 320 Value Destroyed (1635) 1635 Prototype IDs (8) 160 Alien Tech Used (0) 0 Bonus (7) 7 TOTAL SCORE: 4822 Bonus ------- Follower Combat Kills 7 Cogmind --------- Core Integrity 546/700 Matter 115/300 Energy 150/150 System Corruption 12% Temperature Cool (38) Movement Walking (123) Location -7/Factory Parts ------- > --- POWER (1) -------- Micro Fission Core > --- PROPULSION (4) --- Aluminum Leg Aluminum Leg Improved Titanium Leg > --- UTILITY (5) ------ Large Storage Unit Improved Sensor Array Improved Signal Interpreter Advanced Targeting Computer Improved Light Armor Plating > --- WEAPON (3) ------- Gauss Rifle Gauss Cannon > --- INVENTORY (15) --- Deuterium Engine Deuterium Engine Cryofiber Web High-capacity Storage Unit Improved Signal Interpreter Improved Shield Generator Pulse Rifle Pulse Rifle Minigun Rocket Array Peak State ------------ > --- POWER ------------ Deuterium Engine > --- PROPULSION ------- Aluminum Leg Improved Aluminum Leg Improved Carbon-fiber Leg Improved Titanium Leg > --- UTILITY ---------- Improved Heat Sink Large Storage Unit Improved Sensor Array Improved Signal Interpreter Armor Integrity Analyzer > --- WEAPON ----------- Minigun Enhanced Autogun Rocket Array > --- INVENTORY -------- Deuterium Engine Deuterium Engine Aluminum Leg Cryofiber Web High-capacity Storage Unit Improved Signal Interpreter Improved Terrain Scanner Improved Targeting Computer Improved Light Armor Plating Improved Shield Generator Pulse Rifle Pulse Rifle Minigun Gauss Cannon Rocket Launcher [Rating: 44] Favorites ----------- Power Ion Engine Engine Ion Engine Power Core Light Nuclear Core Propulsion Aluminum Leg Leg Aluminum Leg Utility Structural Scanner Device Structural Scanner Storage Medium Storage Unit Processor Armor Integrity Analyzer Protection Improved Light Armor Plating Weapon Assault Rifle Energy Gun Pulse Rifle Ballistic Gun Assault Rifle Ballistic Cannon Advanced Assault Cannon Launcher Grenade Launcher Build | -11 -10 -10 -10 -9 -8 -7 ------- Run | Yrd Mat Min Exi Min Mat Fac Slots Evolved 6 | . . . . . 4 2 Power . | . . . . . . . Propulsion 2 | . . . . . 2 . Utility 3 | . . . . . 1 2 Weapon 1 | . . . . . 1 . Parts Attached 58 | . 11 3 . 11 15 18 Power 6 | . 1 . . 3 1 1 Engine 3 | . 1 . . 1 1 . Core 3 | . . . . 2 . 1 Reactor . | . . . . . . . Propulsion 20 | . 4 3 . 4 4 5 Treads . | . . . . . . . Leg 20 | . 4 3 . 4 4 5 Wheel . | . . . . . . . Hover . | . . . . . . . Flight . | . . . . . . . Utility 13 | . 2 . . . 6 5 Device 5 | . 1 . . . 3 1 Storage 3 | . 1 . . . 2 . Processor 4 | . . . . . 1 3 Hackware . | . . . . . . . Protection 1 | . . . . . . 1 Artifact . | . . . . . . . Weapon 19 | . 4 . . 4 4 7 Energy Gun 3 | . . . . . 1 2 Energy Cannon . | . . . . . . . Ballistic Gun 11 | . 4 . . 2 2 3 Ballistic Cannon 2 | . . . . . 1 1 Launcher 3 | . . . . 2 . 1 Special Weapon . | . . . . . . . Impact Weapon . | . . . . . . . Slashing Weapon . | . . . . . . . Piercing Weapon . | . . . . . . . Special Melee Weapon . | . . . . . . . Unidentified Prototypes 4 | . . . . . . 4 Parts Lost 10 | . . . . 1 . 9 Power 1 | . . . . 1 . . Propulsion 4 | . . . . . . 4 Utility 2 | . . . . . . 2 Weapon 3 | . . . . . . 3 Highest Loss Streak 6 | . . . . 1 . 6 To Critical Strikes . | . . . . . . . Average Backups 10 | 5 7 10 10 10 10 14 Power 1 | 1 1 2 2 2 2 2 Propulsion 1 | 3 1 2 2 2 . 1 Utility 3 | . 1 3 3 3 4 6 Weapon 3 | 1 3 3 3 3 3 4 Tool/Special . | . . . . . . . Unused Backups 18 | . 6 . . . 2 10 Power 5 | . 1 . . . 2 2 Propulsion 1 | . 1 . . . . . Utility 5 | . 1 . . . . 4 Weapon 7 | . 3 . . . . 4 Tool/Special . | . . . . . . . Average Slot Usage (%) 99 | . 98 100 100 100 98 99 Engine 9 | . 14 14 14 10 2 6 Core 1 | . . . . 3 6 . Leg 29 | . 28 28 28 28 35 29 Device 13 | . 12 14 14 14 10 14 Storage 11 | . 14 14 14 14 9 7 Processor 4 | . . . . . 7 14 Energy Gun 1 | . . . . . 7 . Ballistic Gun 21 | . 28 28 28 19 12 15 Ballistic Cannon 2 | . . . . . 6 6 Peak Build Rating 44 | 6 8 8 8 11 29 44 Average Rating 18 | 6 7 8 8 9 24 40 On Entrance 10 | 6 6 8 8 8 11 29 Avg Prop Armor Cover (%) . | . . . . . . . Naked Turns . | . . . . . . . Heaviest Build 45 | 11 20 20 20 23 42 45 Greatest Support 61 | 20 20 20 20 20 43 61 Greatest Overweight (x) 1 | . . . . 1 . 1 Average Overweight (x) . | . . . . . . . Largest Inventory Capacity 20 | 8 10 10 10 10 20 15 Average Capacity 11 | 8 8 10 10 10 14 15 Most Carried 15 | 5 10 10 10 10 13 15 Average Carried 10 | 4 7 10 10 9 10 14 Final Capacity 15 | 8 10 10 10 10 15 15 Final Carried 13 | 2 10 10 10 10 13 10 Class Distribution -------------------- 61% | Mutant 15% | Skirmisher 12% | Scavenger-Gunner 8% | Scavenger-Skirmisher Dominant Class ---------------- Mutant | -10/Materials Mutant | -10/Mines Mutant | -10/Exiles Mutant | -9/Mines Scavenger-Gunner | -8/Materials Skirmisher | -7/Factory Resources | -11 -10 -10 -10 -9 -8 -7 ----------- Run | Yrd Mat Min Exi Min Mat Fac Matter Collected 2191 | 165 380 124 . 227 416 879 Remotely . | . . . . . . . Salvage Created 2113 | . 295 146 . 259 433 980 Parts 128 | . 26 12 . 18 24 48 Haulers Intercepted 3 | . . . . . 1 2 Recyclers Shooed 11 | . 8 1 . . 1 1 Parts Field Recycled . | . . . . . . . Retrieved Matter . | . . . . . . . Parts Self-Destructed . | . . . . . . . Prevented . | . . . . . . . Parts Restored . | . . . . . . . Kills | -11 -10 -10 -10 -9 -8 -7 ------- Run | Yrd Mat Min Exi Min Mat Fac Combat Hostiles Destroyed 49 | . 9 6 . 6 14 14 Guns 38 | . 9 6 . 6 8 9 Cannons 11 | . . . . . 6 5 Classes Destroyed 10 | . 4 1 . 1 2 2 Worker 6 | . . 1 . . . 5 Tunneler 1 | . 1 . . . . . Hauler 3 | . . . . . 1 2 Recycler 4 | . 1 . . . . 3 Operator 1 | . . . . . . 1 Swarmer 21 | . 6 5 . . 7 3 Grunt 19 | . 3 1 . 5 3 7 Duelist 2 | . . . . 1 . 1 Sentry 4 | . . . . . 4 . Programmer 3 | . . . . . . 3 Best Kill Streak 8 | . 3 2 . 2 8 6 Combat Bots Only 8 | . 3 2 . 2 8 3 Max Kills in Single Turn 2 | . 1 1 . 1 2 2 Gunslinging . | . . . . . . . Exploded . | . . . . . . . Melee . | . . . . . . . Uniques/NPCs Destroyed . | . . . . . . . Combat | -11 -10 -10 -10 -9 -8 -7 -------- Run | Yrd Mat Min Exi Min Mat Fac Hostile Shots Fired 288 | . 33 27 . 27 47 154 Missed 96 | . 7 12 . 7 9 61 Hits 192 | . 26 15 . 20 38 93 Melee 5 | . . . . 4 . 1 Projectile 187 | . 26 15 . 16 38 92 AOE 1 | . . . . . . 1 Critical Strikes 4 | . 1 . . 1 . 2 Part Disruptions 3 | . . . . . . 3 Damage Taken 2623 | . 241 182 . 362 428 1410 Core 325 | . 58 . . 49 64 154 Absorbed by Shields . | . . . . . . . Regen/Repaired (Parts) 27 | . . . . . 27 . Core Remaining (%) 81 | 100 . . . 57 88 . Volleys Fired 156 | . 37 17 . 19 28 55 Largest 3 | . 2 2 . 2 3 3 Hottest 128 | . 40 40 . 43 128 93 Shots Fired 385 | . 74 34 . 38 82 157 Gun 310 | . 74 34 . 38 57 107 Cannon 75 | . . . . . 25 50 Launcher . | . . . . . . . Special . | . . . . . . . Kinetic 360 | . 74 34 . 38 57 157 Thermal 25 | . . . . . 25 . Explosive . | . . . . . . . Electromagnetic . | . . . . . . . Robot Hit Streak 17 | . 16 8 . 16 17 16 Robot Miss Streak 5 | . 4 2 . 5 3 4 Penetration Max . | . . . . . . . Secondary Targets 1 | . . . . 1 . . Max Gunslinging Chain 1 | . . . . 1 . . Shots Hit Robots 226 | . 52 22 . 26 47 79 Core Hits 105 | . 21 10 . 14 21 39 Critical Kills . | . . . . . . . Critical Parts Destroyed . | . . . . . . . Critical Strikes 5 | . . . . . 1 4 Blast 5 | . . . . . 1 4 Melee Attacks . | . . . . . . . Impact . | . . . . . . . Slashing . | . . . . . . . Piercing . | . . . . . . . Sneak Attacks . | . . . . . . . Combat Hostiles . | . . . . . . . Follow-up Attacks . | . . . . . . . Damage Inflicted 4113 | . 662 375 . 367 887 1822 Guns 2938 | . 653 278 . 366 584 1057 Cannons 1048 | . . . . . 289 759 Explosions . | . . . . . . . Melee . | . . . . . . . Ramming 127 | . 9 97 . 1 14 6 Kinetic 3694 | . 653 278 . 366 581 1816 Thermal 292 | . . . . . 292 . Explosive . | . . . . . . . Electromagnetic . | . . . . . . . Impact . | . . . . . . . Slashing . | . . . . . . . Piercing . | . . . . . . . Highest Corruption 12 | . . . . . . 12 Average Corruption 7 | . . . . . . 7 Corruption Purged . | . . . . . . . Corruption Blocked . | . . . . . . . Effects 27 | . . . . . . 27 Message Errors 6 | . . . . . . 6 Matter Fused 9 | . . . . . . 9 Heat Flow Errors 2 | . . . . . . 2 Energy Discharges 3 | . . . . . . 3 Data Loss (minor) 4 | . . . . . . 4 Data Loss (major) 2 | . . . . . . 2 Misdirections 1 | . . . . . . 1 Overload Shots . | . . . . . . . Overflow Damage 33 | . . . . . 23 10 Projectiles 33 | . . . . . 23 10 Explosions . | . . . . . . . Melee . | . . . . . . . Knockbacks 14 | . . . . . 3 11 Impact . | . . . . . . . Kinetic 13 | . . . . . 2 11 Secondary 1 | . . . . . 1 . Self-Inflicted Damage . | . . . . . . . Shots . | . . . . . . . Rammed . | . . . . . . . Targets Rammed 18 | . 3 10 . 1 3 1 Kicked 18 | . 3 10 . 1 3 1 Crushed . | . . . . . . . Highest Temperature 391 | . 2 2 . 7 391 160 Average Temperature 66 | . 2 2 . 3 115 35 Received Heat Transfer 471 | . 39 72 . 123 108 129 Siege Activations . | . . . . . . . Martial Activations . | . . . . . . . Shielding Activations . | . . . . . . . Robots Disrupted . | . . . . . . . Combat Hostiles . | . . . . . . . Robots Corrupted . | . . . . . . . Combat Hostiles . | . . . . . . . Parts Fried . | . . . . . . . Impact Corruptions . | . . . . . . . Robots Melted . | . . . . . . . Combat Hostiles . | . . . . . . . Parts Melted . | . . . . . . . Heat Transferred 629 | . . . . . 629 . Parts Sabotaged . | . . . . . . . Parts Stolen . | . . . . . . . Parts Stripped . | . . . . . . . Power Chain Reactions . | . . . . . . . Alert | -11 -10 -10 -10 -9 -8 -7 ------- Run | Yrd Mat Min Exi Min Mat Fac Maximum Alert Level 1 | . . . . . 1 . Low Security (%) 95 | 100 100 100 . 100 70 100 Level 1 4 | . . . . . 29 . Level 2 . | . . . . . . . Level 3 . | . . . . . . . Level 4 . | . . . . . . . Level 5 . | . . . . . . . High Security . | . . . . . . . Max Security . | . . . . . . . Peak Influence 241 | . 76 99 . 54 241 180 Initial 92 | . . . . . 14 92 Average 44 | . 20 31 . 11 84 70 Influence Increases 1533 | . 256 285 . 150 405 437 Destroy 0b10 Robot/C 1000 | . 180 140 . 120 280 280 Destroy 0b10 Robot/NC 75 | . 10 5 . . 5 55 Destroy Leader 226 | . 40 30 . 30 72 54 Allied During Kill 5 | . . 5 . . . . Successful Hack 37 | . 25 . . . 5 7 Disable Machine 30 | . . . . . 15 15 Destroy Structure 25 | . 1 . . . 13 11 Lose Combat Pursuer 135 | . . 105 . . 15 15 Influence Decreases 1411 | . 256 230 55 112 239 519 Entered New Map 191 | . . . 55 . 24 112 Time Decay 1120 | . 256 230 . 102 215 317 Lost Part 100 | . . . . 10 . 90 Squads Dispatched 7 | . 1 . . . 4 2 Investigation 1 | . 1 . . . . . Extermination 1 | . . . . . . 1 Reinforcement 2 | . . . . . 1 1 Assault . | . . . . . . . Garrison 3 | . . . . . 3 . Intercept . | . . . . . . . Searches Triggered . | . . . . . . . Construction Impeded . | . . . . . . . Haulers Reinforced . | . . . . . . . Active Scanning Responses . | . . . . . . . Cargo Convoy Interrupts 1 | . . . . . . 1 Stealth | -11 -10 -10 -10 -9 -8 -7 --------- Run | Yrd Mat Min Exi Min Mat Fac Distress Signals 3 | . . . . . 1 2 Communications Jammed . | . . . . . . . Distress Signals . | . . . . . . . Times Spotted 91 | . 15 15 . 6 17 38 Peak Tracking Total 15 | . 3 3 . 2 7 15 Tactical Retreats 7 | . . 5 . . 1 1 Traps | -11 -10 -10 -10 -9 -8 -7 ------- Run | Yrd Mat Min Exi Min Mat Fac Traps Triggered 3 | . 1 . . . . 2 Indirectly . | . . . . . . . Trap Hack Attempts . | . . . . . . . Triggered . | . . . . . . . Disarmed . | . . . . . . . Reprogrammed . | . . . . . . . Reused . | . . . . . . . Traps Extracted . | . . . . . . . Installed . | . . . . . . . Triggered . | . . . . . . . Machines | -11 -10 -10 -10 -9 -8 -7 ---------- Run | Yrd Mat Min Exi Min Mat Fac Machines Disabled 2 | . . . . . 1 1 Max in Single Turn 1 | . . . . . 1 1 Machines Repaired . | . . . . . . . Machines Dismantled . | . . . . . . . Machines Sabotaged . | . . . . . . . Overloaded Fab Kills . | . . . . . . . Hacking | -11 -10 -10 -10 -9 -8 -7 --------- Run | Yrd Mat Min Exi Min Mat Fac Machines Accessed 15 | . 5 . . . 3 7 Terminals 10 | . 5 . . . 2 3 Fabricators 3 | . . . . . . 3 Repair Stations 1 | . . . . . 1 . Recycling Units 1 | . . . . . . 1 Scanalyzers . | . . . . . . . Garrison Access . | . . . . . . . Total Hacks 39 | . 16 . . . 9 14 Successful 14 | . 7 . . . 3 4 Failed 24 | . 8 . . . 6 10 Catastrophic 1 | . 1 . . . . . Database Lockouts 1 | . 1 . . . . . Manual 26 | . 14 . . . 6 6 Terminals 29 | . 16 . . . 6 7 Fabricators 5 | . . . . . . 5 Repair Stations 3 | . . . . . 3 . Recycling Units 2 | . . . . . . 2 Scanalyzers . | . . . . . . . Garrison Access . | . . . . . . . Terminal Hacks 6 | . 4 . . . . 2 Robot Analysis 1 | . 1 . . . . . Prototype ID Bank 2 | . 1 . . . . 1 Branch Access Points 1 | . . . . . . 1 Hauler Manifests 1 | . 1 . . . . . Registered Components 1 | . 1 . . . . . Fabricator Hacks . | . . . . . . . Repair Station Hacks 2 | . . . . . 2 . Scan Component 1 | . . . . . 1 . Repair 1 | . . . . . 1 . Recycling Unit Hacks 1 | . . . . . . 1 Report Inventory 1 | . . . . . . 1 Scanalyzer . | . . . . . . . Garrison Access Hacks . | . . . . . . . Unauthorized Hacks 5 | . 3 . . . 1 1 Terminals 5 | . 3 . . . 1 1 Botnet 5 | . 3 . . . 1 1 Fabricators . | . . . . . . . Repair Stations . | . . . . . . . Recycling Units . | . . . . . . . Scanalyzers . | . . . . . . . Garrison Access . | . . . . . . . Data Cores Recovered . | . . . . . . . Used . | . . . . . . . Hacking Detections 15 | . 5 . . . 3 7 Full Trace Events . | . . . . . . . Feedback Events . | . . . . . . . Feedback Blocked . | . . . . . . . Robot Schematics Acquired . | . . . . . . . Robots Built . | . . . . . . . Authchips . | . . . . . . . Time . | . . . . . . . Total Robot Build Rating . | . . . . . . . Part Schematics Acquired . | . . . . . . . Parts Built . | . . . . . . . Authchips . | . . . . . . . Time . | . . . . . . . Total Part Build Rating . | . . . . . . . Part Studies Acquired . | . . . . . . . Parts Repaired 1 | . . . . . 1 . Time 26 | . . . . . 26 . Parts Recycled . | . . . . . . . Recycled Matter . | . . . . . . . Retrieved Matter . | . . . . . . . Retrieved Components . | . . . . . . . Parts Scanalyzed . | . . . . . . . Part Schematics Acquired . | . . . . . . . Parts Damaged . | . . . . . . . Bothacking | -11 -10 -10 -10 -9 -8 -7 ------------ Run | Yrd Mat Min Exi Min Mat Fac Used RIF Installer . | . . . . . . . Robots Hacked . | . . . . . . . Non-combat . | . . . . . . . Combat . | . . . . . . . Robot Hacks Applied . | . . . . . . . Relay Couplers Released 4 | . . . . . . 4 Programmers 4 | . . . . . . 4 Fabnet Peak Effective % . | . . . . . . . Robots Rewired . | . . . . . . . Allies Hacked . | . . . . . . . Hacks Repelled . | . . . . . . . Allies | -11 -10 -10 -10 -9 -8 -7 -------- Run | Yrd Mat Min Exi Min Mat Fac Total Allies 1 | . . 1 . . . . Largest Group 1 | . . 1 . . . . Highest-Rated Group 31 | . . 31 . . . . Highest-Rated Ally 31 | . . 31 . . . . Total Orders . | . . . . . . . Ally Attacks 3 | . . 3 . . . . Total Damage 43 | . . 43 . . . . Kills 1 | . . 1 . . . . Allies Corrupted . | . . . . . . . Allies Melted . | . . . . . . . Intel | -11 -10 -10 -10 -9 -8 -7 ------- Run | Yrd Mat Min Exi Min Mat Fac Active Infowar (turns) 3433 | . 814 829 78 462 408 842 Sensors 1230 | . . . . . 388 842 Terrain 286 | . . . . . . 286 Structural 2283 | . 814 829 78 462 100 . Robot Analysis Total 1 | . 1 . . . . . Derelict Logs Recovered 2 | . . 1 . 1 . . Drone Launches . | . . . . . . . Drone Recoveries . | . . . . . . . Exploration | -11 -10 -10 -10 -9 -8 -7 ------------- Run | Yrd Mat Min Exi Min Mat Fac Turns Passed 3765 | 2 910 829 78 462 602 882 Spaces Moved 2438 | 1 629 621 66 229 342 550 Core . | . . . . . . . Treads . | . . . . . . . Legs 2438 | 1 629 621 66 229 342 550 Wheels . | . . . . . . . Hover . | . . . . . . . Flight . | . . . . . . . Fastest Speed 120 | 120 120 120 120 120 120 120 Average Speed 124 | 120 120 120 120 162 120 121 Slowest Speed 190 | 120 120 120 120 190 120 190 Overloaded Moves . | . . . . . . . Propulsion Burnouts . | . . . . . . . Robots Hopped . | . . . . . . . Potential Cave-ins . | . . . . . . . Cave-ins Triggered . | . . . . . . . Exploration Rate (%) 40 | 2 71 98 10 56 29 17 Regions Visited 6 Branch Regions 3 Pre-discovered Areas . | . . . . . . . Known Exits Taken . | . . . . . . . Unknown Exits Taken 6 | 1 1 1 1 1 1 . Scrap Searched 5 | . . 3 . 2 . . Spaces Dug 2 | . . . . . 1 1 Terrain Destroyed 17 | . . . . . 11 6 Melee . | . . . . . . . Projectile 17 | . . . . . 11 6 AOE . | . . . . . . . Terrain Rammed . | . . . . . . . Walls Destroyed . | . . . . . . . Machines Disabled . | . . . . . . . Actions | -11 -10 -10 -10 -9 -8 -7 --------- Run | Yrd Mat Min Exi Min Mat Fac Total 2878 | 4 712 670 65 283 473 671 Wait 114 | . 10 17 . 12 61 14 Move 2432 | . 628 620 65 228 341 550 Hop . | . . . . . . . Pick Up 27 | . 10 . . 1 10 6 Fast Attach 12 | . 1 . . 3 3 5 Attach 17 | . 2 . . . 4 11 Detach 7 | . . . . . 2 5 Swap 46 | . 10 3 . 10 10 13 Drop 48 | 4 11 3 . 9 11 10 Fire 156 | . 37 17 . 19 28 55 Melee . | . . . . . . . Ram 1 | . . . . . . 1 Kick 18 | . 3 10 . 1 3 1 Crush . | . . . . . . . Escape Stasis . | . . . . . . . Rewire . | . . . . . . . Trap . | . . . . . . . Miscellaneous . | . . . . . . . Route ------- -11/Scrapyard -10/Materials (discovered 4 exits: [*Mat x2] / [*Min x2]) -10/Mines (discovered 4 exits: [*Mat x2] / [*Exi] / [*Sub]) -10/Exiles -9/Mines -8/Materials -7/Factory (discovered 2 exits: Low x2) History --------- Turn | Location | Event 3 | -11/Scrapyard | Discovered new exit (range 0) 3 | -11/Scrapyard | Entered Materials 12 | -10/Materials | Central database locked down 62 | -10/Materials | Discovered new exit (range 11) 301 | -10/Materials | Discovered new exit (range 11) 306 | -10/Materials | Build established: Mutant 352 | -10/Materials | Discovered new exit (range 14) 618 | -10/Materials | Discovered new exit (range 4) 913 | -10/Materials | Entered Mines 935 | -10/Mines | Met a Derelict bent on vengeance 1029 | -10/Mines | Learned Materials security intel 1101 | -10/Mines | Found a hidden stash of uninstalled traps 1426 | -10/Mines | Discovered new exit (range 10) 1429 | -10/Mines | Received a Mining Laser from a helpful Derelict 1475 | -10/Mines | Discovered new exit (range 9) 1575 | -10/Mines | Discovered new exit (range 5) 1737 | -10/Mines | Deemed a non-threat by the Exiles lab entrance 1737 | -10/Mines | Discovered new exit (range 5) 1742 | -10/Mines | Entered Exiles 1742 | -10/Exiles | Found Exiles lab destroyed 1762 | -10/Exiles | Discovered new exit (range 14) 1820 | -10/Exiles | Entered Mines 1821 | -9/Mines | Assembled infested the area 1827 | -9/Mines | Received a Rocket Launcher from a helpful Derelict 2101 | -9/Mines | Learned Materials emergency access door positions 2257 | -9/Mines | Discovered new exit (range 5) 2282 | -9/Mines | Entered Materials 2282 | -8/Materials | Evolved 4 slots: Propulsion x2, Utility x1, Weapon x1 2490 | -8/Materials | Repaired Aluminum Leg 2544 | -8/Materials | Garrison activated, responded to threat 2737 | -8/Materials | Destroyed 8 combat bots 2760 | -8/Materials | Discovered new exit (range 14) 2786 | -8/Materials | Build established: Scavenger-Gunner 2884 | -8/Materials | Entered Factory 2884 | -7/Factory | Evolved 2 slots: Utility x2 3089 | -7/Factory | Identified exit to Lower Caves 3392 | -7/Factory | Found Prototype Launcher 3392 | -7/Factory | Identified Rocket Array 3396 | -7/Factory | Found Rocket Array 3552 | -7/Factory | Build established: Skirmisher 3739 | -7/Factory | Cargo convoy interrupted 3739 | -7/Factory | System corruption reached 10% 3766 | -7/Factory | Self-destructed Last Messages --------------- 03754_ K-01 Serf collects debris. 03755_ Aluminum Leg destroyed. 03756_ P-60 Hacker destroyed. 03757_ K-01 Serf collects debris. 03758_ Slug penetrates Subcomponent Replicator. 03758_ Penetrated by Slug. 03758_ K-01 Serf collects debris. 03759_ Slug penetrates Subcomponent Replicator. 03761_ Penetrated by Slug. 03761_ Enh. Autogun destroyed. 03762_ Slug penetrates Subcomponent Replicator. 03762_ Imp. Carbon-fiber Leg destroyed. 03762_ K-01 Serf collects debris. 03763_ H-55 Commando Carbon-fiber Leg blasted off. 03763_ H-55 Commando knocked back. 03764_ X-57 Shotgunner destroyed. 03764_ X-67 Chaingunner destroyed. 03764_ Penetrated by Slug. 03765_ Slug penetrates Subcomponent Replicator. 03766_ K-01 Serf collects debris. Map ----- +----------------------------------------------------+ | ?? #####+#### #? | | ?? % % #####+#########? | | ?? # #????? | | ? +%""" """ #????? | | ? ! ########%""" """ #????? | | ! #?#??### """ """ #????? | | * = #??????# ##???? | | = #??????# "F "" #????? | | ???############# #######+#######??# """"" #????? | | ???????#???????# ## #??# ! """"" #????? | | ????#??????????# ## #??###########????? | | ??????????#????# ## #???#?????????????? | | ???????????????# ## #?????????????????? | | ?? ? ?########## ## """ """ ##?#??????????????# | | ??????#! + ## """ """ #?????????#???????? | | ??????# # ## """ """ #???#?????????????? | | ????? # # ## #?#??#??#????#????? | | ??????# + ## """ """ #?#???????????????? | | ??????#]]] # ## """ """ #???????#?????????? | | ??????#]]] # ## """ """ #?????????????????? | | ??????#]]] # #??? ??? #?????????????????? | | ??????# # #???#####?????#?#???????????????? | | ??????# ! # ###################?????????????? | | ?########### # !=% #?????????????? | | # !p%! #?????????????? | | %!#% h=!%[@= #?????????????? | | !!#!=k""*"!%""""" #?????????????? | | ?"""""""" ==+!k%"""""h""""" ??????????????? | | %|#!k ""hh """ #?????????????? | | ?"" w *#| bb b ! #?????????????? | | ?"" ###################?????????????? | | ?F ??????##??????????????????????? | | ?"" ??? ?????????????????????????? | | ??" ????????#??#????????????????? | | ?? ??????????????????????????? | | ?? ?????????????????????????? | | ?? ####+########### #????????????????????????? | | ????? ???????????? #????????????????????????? | | ????? ??????? ????? ?????w??????????????????? | | ???????????????????? ???????????????????????? | | ???????????????????? ??????????????????????? | | ?????? ????????? ???? ????????????????????????? | | ?????????????????????? ??????????????????????????? | | ?????????????????????????????????????????????????? | | ??????????????? ?????????????????????????????????? | | ?????????????????????????????????????????????????? | | ?????????????????????????????????????????????????? | | ?????????????????????????????????????????????????? | | ?????????????????????????????????????????????????? | | ?????????????????????????????????????????????????? | +----------------------------------------------------+ Best States ------------- Heat Dissipation 48 Energy Generation 15 Energy Capacity 275 Matter Stores 300 Matter Capacity 300 Sight Range 16 Robot Scan Range 15 Terrain Scan Range 16 Terrain Scan Density 10 Armor Coverage 150 Evasion (%) 55 Targeting Accuracy 8 Armor Integrity Analysis 30 Item Schematics ----------------- None Robot Schematics ------------------ None Fabricated ------------ Nothing Repaired ---------- Aluminum Leg | 70% | -8/Materials Studied --------- None Alien Tech Used ----------------- None Achievements -------------- Botjacking Challenges ------------ None Game ------ Seed FieldCloakingMaul Manual? 0 Play Time 00:32:10 Cumulative 36.0 hours Start 2026.03.21 @ 16:03:36 End 2026.03.21 @ 16:37:12 Sessions 1 Manual Loads 0 Difficulty Rogue Special Mode None Game No. 46 Rogue 46 Adventurer 0 Explorer 0 Win Type - Total 0 Types 0/0/0/0/0/0/0/0/0/0 Lore% 45 Gallery% 32 Achievement% 32 Wizard Run 0 Options --------- Layout 0 ASCII 0 Keyboard 1 Movement Arrows Keybinds 0 Fullscreen 2 Font 18/X11Bold Map View 76x50 Zoom Use 0% Tactical HUD 1 Map Filters NONE Filters NONE Steam 1 RUN: de53c53e-6c3c-4828-83f8-75d484d0fd7e